fUSD/lending_fUSD_20240628
["ID","MTS","AMOUNT","RATE_DAILY","PERIOD"]
[330554357,1719564643888,-372.997,0.00017134,2]
[330554359,1719564643898,-166.0,0.00017134,2]
[330554361,1719564643907,-448.0,0.00017134,2]
[330554363,1719564643921,-2414.0,0.00017134,2]
[330554366,1719564643930,-1304.0,0.00017134,2]
[330554367,1719564643939,-152.747,0.00017134,2]
[330554368,1719564643948,-1986.0,0.00017134,2]
[330554369,1719564643959,-3203.0,0.00017134,2]
[330554370,1719564643969,-548.0,0.00017134,2]
[330554371,1719564643978,-38180.0,0.00017134,2]
[330554372,1719564643990,-5804.0,0.00017134,2]
[330554373,1719564644004,-152.0,0.00017134,2]
[330554374,1719564644013,-209.076,0.00017134,2]
[330554375,1719564644023,-5234.452,0.00017134,2]
[330554376,1719564644033,-291.0,0.00017134,2]
[330554377,1719564644042,-244.325,0.00017134,2]
[330554378,1719564644052,-150.861,0.00017134,2]
[330554379,1719564644061,-153.945,0.00017134,2]
[330554380,1719564644088,-1197.0,0.00017134,2]
[330554381,1719564644097,-1661.0,0.00017134,2]
[330554382,1719564644107,-242.962,0.00017134,2]
[330554383,1719564644116,-157.153,0.00017134,2]
[330554384,1719564644126,-1069.0,0.00017134,2]
[330554385,1719564644135,-170.565,0.00017134,2]
[330554386,1719564644145,-174.01351,0.0001726,2]
[330554387,1719564644154,-1758.53588891,0.00017444,2]
[330554388,1719564644164,-622.59689453,0.00017533,2]
[330554389,1719564644173,-837.52,0.00017611,2]
[330554390,1719564644183,-1307.96454679,0.00017719,2]
[330554391,1719564644192,-734.09027283,0.00017733,2]
[330554392,1719564644201,-6753.89800146,0.00017768,2]
[330554393,1719564644210,-704.08,0.00017802,2]
[330554394,1719564644219,-209.96997035,0.00017807,2]
[330554395,1719564644228,-162.48,0.00017854,2]
[330554396,1719564644237,-1700.78042385,0.00018,2]
[330554397,1719564644246,-174.01351,0.00018082,2]
[330554398,1719564644255,-174.68,0.00018125,2]
[330554399,1719564644265,-1000.0,0.00018153,2]
[330554400,1719564644274,-1000.0,0.00018153,2]
[330554401,1719564644283,-1000.0,0.00018153,2]
[330554402,1719564644292,-168.77,0.00018275,2]
[330554403,1719564644302,-209.31,0.00018353,2]
[330554404,1719564644311,-150.73175993,0.00018448,2]
[330554405,1719564644322,-1307.96454679,0.00018606,2]
[330554406,1719564644331,-6753.89800146,0.00018643,2]
[330554407,1719564644341,-155.0,0.00018864,2]
[330554408,1719564644350,-305.3305634,0.00018864,2]
[330554409,1719564644359,-164.06,0.000189,2]
[330554410,1719564644368,-4827.5168423,0.000189,2]
[330554411,1719564644377,-174.01351,0.00018904,2]
[330554412,1719564644386,-416.4712043,0.00018929,2]
[330554413,1719564644395,-383.3117566,0.00018963,2]
[330554414,1719564644405,-1477.23095,0.0001899,2]
[330554415,1719564644414,-533.11260756,0.00018999,2]
[330554416,1719564644424,-533.11260756,0.00018999,2]
[330554417,1719564644435,-602.72168911,0.00019069,2]
[330554418,1719564644445,-247.0938158,0.00019069,2]
[330554419,1719564644456,-296.71594966,0.00019069,2]
[330554420,1719564644466,-155.0,0.00019077,2]
[330554421,1719564644475,-734.09027283,0.00019078,2]
[330554422,1719564644484,-5191.2482,0.00019078,2]
[330554423,1719564644494,-444.7399,0.00019078,2]
[330554424,1719564644504,-5359.9547864,0.00019176,2]
[330554425,1719564644517,-427.149998,0.00019176,2]
[330554426,1719564644528,-1502.81579274,0.00019176,2]
[330554452,1719564646211,-860.22500001,0.00016315,2]
[330554459,1719564646286,-8376.18822617,0.00016315,2]
[330554460,1719564646296,-205.27551127,0.00018899,2]
[330554463,1719564646306,-8414.7748013,0.00019176,2]
[330554464,1719564646316,-500.0,0.00019178,2]
[330554467,1719564646327,-500.0,0.00019178,2]
[330554468,1719564646338,-500.0,0.00019178,2]
[330554470,1719564646347,-500.0,0.00019178,2]
[330554472,1719564646357,-500.0,0.00019178,2]
[330554474,1719564646367,-500.0,0.00019178,2]
[330554476,1719564646376,-500.0,0.00019178,2]
[330554478,1719564646385,-514.9379902,0.00019178,2]
[330554480,1719564646395,-500.0,0.00019178,2]
[330554482,1719564646404,-500.0,0.00019178,2]
[330554484,1719564646413,-500.0,0.00019178,2]
[330554486,1719564646423,-500.0,0.00019178,2]
[330554488,1719564646435,-500.0,0.00019178,2]
[330554490,1719564646446,-500.0,0.00019178,2]
[330554492,1719564646456,-500.0,0.00019178,2]
[330554494,1719564646466,-500.0,0.00019178,2]
[330554496,1719564646475,-500.0,0.00019178,2]
[330554498,1719564646485,-500.0,0.00019178,2]
[330554500,1719564646494,-500.0,0.00019178,2]
[330554502,1719564646503,-500.0,0.00019178,2]
[330554504,1719564646512,-500.0,0.00019178,2]
[330554506,1719564646521,-500.0,0.00019178,2]
[330554508,1719564646530,-470.92648419,0.00019178,2]
[330554509,1719564646539,-500.0,0.00019178,2]
[330554511,1719564646548,-2154.29142662,0.00019178,2]
[330554518,1719564646604,-2704.15387127,0.00019178,2]
[330554521,1719564646623,-1057.20209729,0.00019178,2]
[330554525,1719564646652,-841.84260482,0.00019178,2]
[330554527,1719564646661,-500.73468607,0.00019178,2]
[330554529,1719564646670,-500.0,0.00019178,2]
[330554531,1719564646679,-500.0,0.00019178,2]
[330554532,1719564646689,-87.10214112,0.00019178,2]
[330554581,1719565101920,-191.0,0.00031216,30]
[330554582,1719565101944,-1004.60790294,0.00031216,30]
[330554583,1719565101968,-1000.0,0.00031216,30]
[330554584,1719565101991,-1000.0,0.00031216,30]
[330554585,1719565102013,-452.79606547,0.00031216,30]
[330554586,1719565102036,-1000.0,0.00031216,30]
[330554587,1719565102059,-1000.0,0.00031216,30]
[330554588,1719565102082,-1000.0,0.00031216,30]
[330554589,1719565102104,-1000.0,0.00031216,30]
[330554590,1719565102126,-1000.0,0.00031216,30]
[330554591,1719565102150,-1000.0,0.00031216,30]
[330554592,1719565102178,-1000.0,0.00031216,60]
[330554593,1719565102203,-542.4675099,0.00031216,30]
[330554594,1719565102229,-1000.0,0.00031216,60]
[330554595,1719565102254,-1000.0,0.00031216,30]
[330554596,1719565102278,-1000.0,0.00031216,30]
[330554597,1719565102302,-1000.0,0.00031216,30]
[330554598,1719565102330,-1000.0,0.00031216,60]
[330554599,1719565102354,-1000.0,0.00031216,60]
[330554600,1719565102380,-1000.0,0.00031216,60]
[330554601,1719565102406,-1000.0,0.00031216,60]
[330554602,1719565102431,-1000.0,0.00031216,60]
[330554603,1719565102456,-1000.0,0.00031216,60]
[330554604,1719565102478,-1000.0,0.00031216,60]
[330554605,1719565102502,-1000.0,0.00031216,120]
[330554606,1719565102526,-1000.0,0.00031216,30]
[330554607,1719565102550,-1000.0,0.00031216,30]
[330554608,1719565102574,-1000.0,0.00031216,30]
[330554609,1719565102597,-1000.0,0.00031216,30]
[330554610,1719565102625,-1000.0,0.00031216,30]
[330554611,1719565102650,-1000.0,0.00031216,30]
[330554612,1719565102674,-1000.0,0.00031216,60]
[330554613,1719565102697,-1000.0,0.00031216,30]
[330554614,1719565102724,-1000.0,0.00031216,60]
[330554615,1719565102752,-515.0,0.00031216,30]
[330554616,1719565102776,-489.0,0.00031216,30]
[330554617,1719565102799,-482.5951181,0.00031216,30]
[330554618,1719565102822,-360.67973171,0.00031216,30]
[330554619,1719565102846,-833.63972022,0.00031216,30]
[330554620,1719565102871,-1000.0,0.00031216,30]
[330554621,1719565102896,-698.09102536,0.00031216,30]
[330554622,1719565102920,-205.84709627,0.00031216,30]
[330554623,1719565102946,-325.19815644,0.00031216,30]
[330554624,1719565102973,-1570.21493767,0.00031216,30]
[330554625,1719565102997,-2541.4,0.00031216,120]
[330554626,1719565103020,-816.55951605,0.00031216,30]
[330554627,1719565103044,-824.36972789,0.00031216,30]
[330554628,1719565103069,-659.170113,0.00031216,30]
[330554629,1719565103093,-887.96386975,0.00031216,30]
[330554630,1719565103117,-197.25023904,0.00031216,30]
[330554631,1719565103141,-917.34501649,0.00031216,30]
[330554632,1719565103165,-195.72122824,0.00031216,30]
[330554633,1719565103190,-373.80222695,0.00031216,31]
[330554634,1719565103216,-332.76582454,0.00031216,30]
[330554635,1719565103244,-500.0,0.00031216,30]
[330554636,1719565103267,-244.13429058,0.00031216,120]
[330554637,1719565103292,-1145.79452075,0.00031216,120]
[330554638,1719565103316,-222.02643706,0.00031216,30]
[330554639,1719565103338,-258.06107453,0.00031216,30]
[330554640,1719565103362,-246.93318228,0.00031216,120]
[330554641,1719565103845,-843.80157209,0.00031216,30]
[330554642,1719565103871,-192.87191478,0.00031216,30]
[330554643,1719565103898,-392.49509682,0.00031216,120]
[330554644,1719565103926,-1048.69896477,0.00031216,30]
[330554645,1719565103951,-252.68991519,0.00031216,120]
[330554646,1719565103975,-252.62385074,0.00031216,30]
[330554647,1719565103999,-245.95506731,0.00031216,30]
[330554648,1719565104024,-171.5898117,0.00031216,30]
[330554649,1719565104047,-1437.55921954,0.00031216,120]
[330554650,1719565104072,-511.84232081,0.00031216,30]
[330554651,1719565104099,-1092.15578614,0.00031216,30]
[330554652,1719565104122,-285.95880237,0.00031216,30]
[330554653,1719565104144,-209.88487179,0.00031216,120]
[330554654,1719565104167,-266.0,0.00031216,30]
[330554655,1719565104190,-526.55383834,0.00031216,120]
[330554656,1719565104213,-1000.0,0.00031216,30]
[330554657,1719565104239,-154.000164,0.00031216,30]
[330554658,1719565104262,-154.000164,0.00031216,30]
[330554659,1719565104286,-1000.0,0.00031216,30]
[330554660,1719565104311,-1000.0,0.00031216,30]
[330554661,1719565104334,-1000.0,0.00031216,30]
[330554662,1719565104358,-1000.0,0.00031216,30]
[330554663,1719565104381,-1000.0,0.00031216,30]
[330554664,1719565104405,-1000.0,0.00031216,30]
[330554665,1719565104428,-1000.0,0.00031216,30]
[330554666,1719565104452,-1000.0,0.00031216,30]
[330554667,1719565104475,-1000.0,0.00031216,30]
[330554668,1719565104498,-1000.0,0.00031216,30]
[330554669,1719565104522,-1000.0,0.00031216,30]
[330554670,1719565104545,-1000.0,0.00031216,30]
[330554671,1719565104568,-1000.0,0.00031216,30]
[330554672,1719565104593,-1000.0,0.00031216,30]
[330554673,1719565104617,-1000.0,0.00031216,30]
[330554674,1719565104648,-1000.0,0.00031216,30]
[330554675,1719565104672,-1000.0,0.00031216,30]
[330554676,1719565104695,-1000.0,0.00031216,30]
[330554677,1719565104721,-1307.331628,0.00031216,30]
[330554678,1719565104745,-5782.41,0.00031216,30]
[330554679,1719565104770,-5782.41,0.00031216,32]
[330554680,1719565104794,-5782.41,0.00031216,34]
[330554681,1719565104817,-5782.41,0.00031216,36]
[330554682,1719565104841,-5782.41,0.00031216,38]
[330554683,1719565104867,-5782.41,0.00031216,40]
[330554684,1719565104891,-5782.41,0.00031216,42]
[330554685,1719565104914,-5782.41,0.00031216,44]
[330554686,1719565104938,-5782.41,0.00031216,46]
[330554687,1719565104963,-5782.41,0.00031216,120]
[330554688,1719565104990,-5782.41,0.00031216,120]
[330554689,1719565105014,-5782.41,0.00031216,120]
[330554690,1719565105038,-5782.41,0.00031216,120]
[330554691,1719565105062,-5782.41,0.00031216,120]
[330554692,1719565105086,-5782.41,0.00031216,120]
[330554693,1719565105111,-5782.59909556,0.00031216,120]
[330554694,1719565105135,-200.0,0.00031216,30]
[330554695,1719565105158,-252.868802,0.00031216,30]
[330554696,1719565108242,506.82,0.00031216,30]
[330554697,1719565269172,150.0,0.00031216,30]
[330554698,1719565544761,586.0,0.00031222,30]
[330554699,1719565553386,1927.47,0.00031222,30]
[330554700,1719565553868,1927.47,0.00031222,32]
[330554701,1719565555520,1927.47,0.00031222,34]
[330554702,1719565556171,1927.47,0.00031222,36]
[330554703,1719565556900,1927.47,0.00031222,38]
[330554704,1719565557411,1927.47,0.00031222,40]
[330554705,1719565558420,1927.47,0.00031222,42]
[330554706,1719565558958,1927.47,0.00031222,44]
[330554707,1719565559426,1927.47,0.00031222,46]
[330554708,1719565561133,1927.47,0.00031222,120]
[330554709,1719565561710,1927.47,0.00031222,120]
[330554710,1719565561866,1927.47,0.00031222,120]
[330554711,1719565562341,1927.47,0.00031222,120]
[330554712,1719565562840,1927.47,0.00031222,120]
[330554713,1719565563363,1927.47,0.00031222,120]
[330554714,1719565565008,1927.47,0.00031222,120]
[330554715,1719565579401,159.68704618,0.00031222,30]
[330554721,1719565662509,190.0,0.00031222,30]
[330554722,1719565711210,150.0,0.00031222,30]
[330554737,1719565832480,-155.0,0.00011098,2]
[330554738,1719565832492,-296.213829,0.00011098,2]
[330554739,1719565832502,-1046.67234216,0.000165,2]
[330554740,1719565832513,-64.76867728,0.00017034,2]
[330554741,1719565832526,-478.56882761,0.00017034,2]
[330554742,1719565832539,-206.48541974,0.00017133,2]
[330554743,1719565832552,-192.51458026,0.00017133,2]
[330554744,1719565832561,-300.0,0.00017133,2]
[330554745,1719565832572,-150.235,0.00017134,2]
[330554746,1719565832582,-155.517,0.00017134,2]
[330554747,1719565832591,-150.193,0.00017134,2]
[330554748,1719565832601,-150.488,0.00017134,2]
[330554749,1719565832610,-232.37379519,0.00017134,2]
[330554750,1719565832624,-210.62620481,0.00017134,2]
[330554751,1719565832634,-150.0,0.00017134,2]
[330554752,1719565832643,-2410.0,0.00017134,2]
[330554753,1719565832652,-1142.76255133,0.00017134,2]
[330554754,1719565832678,-150.23744867,0.00017134,2]
[330554755,1719565832688,-3203.0,0.00017134,2]
[330554756,1719565832697,-547.0,0.00017134,2]
[330554757,1719565832706,-1982.0,0.00017134,2]
[330554758,1719565832716,-5172.0,0.00017134,2]
[330554759,1719565832725,-289.0,0.00017134,2]
[330554760,1719565832735,-2855.06780362,0.00017134,2]
[330554761,1719565832747,-2948.93219638,0.00017134,2]
[330554762,1719565832757,-1030.849,0.00017134,2]
[330554763,1719565832766,-23900.0,0.00017292,2]
[330554764,1719565832776,-1292.98,0.00017317,2]
[330554765,1719565832786,-200.0,0.00017322,2]
[330554766,1719565832795,-808.26,0.00017363,2]
[330554767,1719565832804,-305.67,0.00017378,2]
[330554768,1719565832815,-499.99,0.00017378,2]
[330554770,1719565832824,-4598.75,0.00017387,2]
[330554772,1719565832835,-250.0,0.00017393,2]
[330554774,1719565832844,-2446.2,0.0001742,2]
[330554776,1719565832853,-168.53,0.00017444,2]
[330554778,1719565832862,-9236.41322618,0.00017444,2]
[330554779,1719565832871,-215.29,0.00017446,2]
[330554781,1719565832880,-250.0,0.00017529,2]
[330554783,1719565832889,-8423.37,0.00017584,2]
[330554786,1719565832900,-967.5,0.00017636,2]
[330554788,1719565832909,-292.84,0.00017896,2]
[330554790,1719565832920,-177.51,0.00017901,2]
[330554791,1719565832930,-885.85075113,0.00018081,2]
[330554793,1719565832941,-215.29,0.00018319,2]
[330554794,1719565832950,-6495.498,0.00018386,2]
[330554795,1719565832960,-519.99643975,0.00018649,2]
[330554796,1719565832971,-420.0,0.0001871,2]
[330554797,1719565832981,-268.45234995,0.00018717,2]
[330554798,1719565832990,-203.92135386,0.00018864,2]
[330554799,1719565832999,-205.27551127,0.00018899,2]
[330554800,1719565833008,-411.06244904,0.00018945,2]
[330554801,1719565833018,-4601.392351,0.00019,2]
[330554802,1719565833027,-500.0,0.00019025,2]
[330554803,1719565833036,-392.3893641,0.00019069,2]
[330554804,1719565833046,-150.12100759,0.00019078,2]
[330554805,1719565833056,-3773.39988876,0.00019078,2]
[330554806,1719565833065,-168.81948327,0.00019078,2]
[330554807,1719565833076,-186.29869989,0.00019078,2]
[330554808,1719565833085,-321.29737362,0.00019078,2]
[330554809,1719565833095,-150.73175993,0.00019078,2]
[330554810,1719565833104,-164.37168205,0.00019078,2]
[330554811,1719565833114,-3286.3388,0.00019078,2]
[330554812,1719565833123,-10453.7029,0.00019078,2]
[330554813,1719565833134,-425.5106,0.00019078,2]
[330554814,1719565833144,-2620.8455,0.00019078,2]
[330554815,1719565833155,-222.3284,0.00019078,2]
[330554816,1719565833164,-24546.1676,0.00019078,2]
[330554817,1719565833173,-416.139,0.00019078,2]
[330554818,1719565833183,-1474.9,0.00019168,2]
[330554819,1719565833192,-1474.9,0.00019168,2]
[330554820,1719565833200,-1474.9,0.00019168,2]
[330554821,1719565833210,-1474.9,0.00019168,2]
[330554822,1719565833219,-1000.0,0.00019169,2]
[330554823,1719565833229,-186.29869987,0.00019169,2]
[330554824,1719565833238,-2016.1665854,0.00019177,2]
[330554825,1719565833248,-500.0,0.00019178,2]
[330554826,1719565833257,-500.0,0.00019178,2]
[330554827,1719565833267,-500.0,0.00019178,2]
[330554828,1719565833276,-500.0,0.00019178,2]
[330554829,1719565833285,-500.0,0.00019178,2]
[330554830,1719565833293,-500.0,0.00019178,2]
[330554831,1719565833303,-500.0,0.00019178,2]
[330554832,1719565833312,-500.0,0.00019178,2]
[330554833,1719565833321,-500.0,0.00019178,2]
[330554834,1719565833331,-500.0,0.00019178,2]
[330554835,1719565833341,-475.15058443,0.00019178,2]
[330554836,1719565833350,-500.0,0.00019178,2]
[330554837,1719565833359,-500.0,0.00019178,2]
[330554838,1719565833370,-500.0,0.00019178,2]
[330554839,1719565833380,-500.0,0.00019178,2]
[330554840,1719565833389,-500.0,0.00019178,2]
[330554841,1719565833399,-406.49446964,0.00019178,2]
[330554842,1719565833409,-253.91407178,0.00019178,2]
[330554843,1719565833420,-500.0,0.00019178,2]
[330554844,1719565833429,-500.0,0.00019178,2]
[330554845,1719565833439,-612.37137942,0.00019178,2]
[330554846,1719565833448,-500.0,0.00019178,2]
[330554847,1719565833463,-510.70015931,0.00019178,2]
[330554848,1719565833473,-500.0,0.00019178,2]
[330554849,1719565833482,-500.0,0.00019178,2]
[330554850,1719565833492,-500.0,0.00019178,2]
[330554851,1719565833503,-259.81925109,0.00019178,2]
[330554852,1719565833512,-500.0,0.00019178,2]
[330554853,1719565833524,-500.0,0.00019178,2]
[330554854,1719565833535,-500.0,0.00019178,2]
[330554855,1719565833545,-500.0,0.00019178,2]
[330554856,1719565833555,-500.0,0.00019178,2]
[330554857,1719565833563,-500.0,0.00019178,2]
[330554858,1719565833573,-467.19680717,0.00019178,2]
[330554859,1719565833583,-422.66278787,0.00019178,2]
[330554860,1719565833592,-500.0,0.00019178,2]
[330554861,1719565833601,-500.0,0.00019178,2]
[330554862,1719565833610,-500.0,0.00019178,2]
[330554863,1719565833620,-500.0,0.00019178,2]
[330554864,1719565833630,-500.0,0.00019178,2]
[330554865,1719565833639,-500.0,0.00019178,2]
[330554866,1719565833648,-573.32796377,0.00019178,2]
[330554867,1719565833657,-323.4277709,0.00019178,2]
[330554868,1719565833667,-460.59602577,0.00019178,2]
[330554869,1719565833676,-569.99018794,0.00019178,2]
[330554870,1719565833685,-500.0,0.00019178,2]
[330554871,1719565833694,-500.0,0.00019178,2]
[330554872,1719565833704,-500.0,0.00019178,2]
[330554873,1719565833713,-500.0,0.00019178,2]
[330554874,1719565833722,-500.0,0.00019178,2]
[330554875,1719565833731,-500.0,0.00019178,2]
[330554876,1719565833740,-500.0,0.00019178,2]
[330554877,1719565833750,-500.0,0.00019178,2]
[330554878,1719565833760,-500.0,0.00019178,2]
[330554879,1719565833770,-488.39017542,0.00019178,2]
[330554880,1719565833792,-11.60982458,0.00019178,2]
[330554881,1719565833801,-500.0,0.00019178,2]
[330554882,1719565833810,-500.0,0.00019178,2]
[330554883,1719565833819,-500.0,0.00019178,2]
[330554884,1719565833829,-500.0,0.00019178,2]
[330554885,1719565833838,-500.0,0.00019178,2]
[330554886,1719565833847,-500.0,0.00019178,2]
[330554887,1719565833856,-500.0,0.00019178,2]
[330554888,1719565833865,-500.0,0.00019178,2]
[330554889,1719565833875,-500.0,0.00019178,2]
[330554890,1719565833884,-500.0,0.00019178,2]
[330554891,1719565833894,-504.34564417,0.00019178,2]
[330554892,1719565833904,-500.0,0.00019178,2]
[330554893,1719565833915,-500.0,0.00019178,2]
[330554894,1719565833925,-431.97848957,0.00019178,2]
[330554895,1719565833934,-500.0,0.00019178,2]
[330554896,1719565833944,-500.0,0.00019178,2]
[330554897,1719565833954,-500.0,0.00019178,2]
[330554898,1719565833964,-500.0,0.00019178,2]
[330554899,1719565833974,-500.0,0.00019178,2]
[330554900,1719565833984,-500.0,0.00019178,2]
[330554901,1719565833995,-500.0,0.00019178,2]
[330554902,1719565834006,-500.0,0.00019178,2]
[330554903,1719565834016,-500.0,0.00019178,2]
[330554904,1719565834025,-500.0,0.00019178,2]
[330554905,1719565834036,-500.0,0.00019178,2]
[330554906,1719565834045,-500.0,0.00019178,2]
[330554907,1719565834054,-500.0,0.00019178,2]
[330554908,1719565834064,-500.0,0.00019178,2]
[330554909,1719565834073,-500.0,0.00019178,2]
[330554910,1719565834083,-500.0,0.00019178,2]
[330554911,1719565834093,-500.0,0.00019178,2]
[330554912,1719565834102,-280.54121806,0.00019178,2]
[330554913,1719565834119,-219.45878194,0.00019178,2]
[330554914,1719565834128,-500.0,0.00019178,2]
[330554915,1719565834138,-245.96030794,0.00019178,2]
[330554916,1719565834150,-346.48303694,0.00019178,2]
[330554917,1719565834162,-151.69665512,0.00019178,2]
[330554918,1719565834171,-500.0,0.00019178,2]
[330554919,1719565834180,-444.92813133,0.00019178,2]
[330554920,1719565834216,-55.07186867,0.00019178,2]
[330554921,1719565834226,-500.0,0.00019178,2]
[330554922,1719565834235,-449.28194866,0.00019178,2]
[330554923,1719565834256,-258.76851609,0.00019178,2]
[330554924,1719565834268,-943.50953525,0.00019178,2]
[330554925,1719565834278,-500.0,0.00019178,2]
[330554926,1719565834289,-500.0,0.00019178,2]
[330554927,1719565834299,-1395.08,0.00019178,2]
[330554928,1719565834307,-500.0,0.00019178,2]
[330554929,1719565834317,-500.0,0.00019178,2]
[330554930,1719565834328,-500.0,0.00019178,2]
[330554931,1719565834338,-1044.71,0.00019178,2]
[330554932,1719565834347,-500.0,0.00019178,2]
[330554933,1719565834361,-500.0,0.00019178,2]
[330554934,1719565834370,-500.0,0.00019178,2]
[330554935,1719565834379,-3077.75,0.00019178,2]
[330554936,1719565834388,-500.0,0.00019178,2]
[330554937,1719565834399,-500.0,0.00019178,2]
[330554938,1719565834408,-500.0,0.00019178,2]
[330554939,1719565834417,-500.0,0.00019178,2]
[330554940,1719565834427,-500.0,0.00019178,2]
[330554941,1719565834436,-500.0,0.00019178,2]
[330554942,1719565834447,-500.0,0.00019178,2]
[330554943,1719565834460,-764.98,0.00019178,2]
[330554944,1719565834469,-500.0,0.00019178,2]
[330554945,1719565834479,-8157.12,0.00019178,2]
[330554946,1719565834489,-764.17,0.00019178,2]
[330554947,1719565834500,-500.0,0.00019178,2]
[330554948,1719565834511,-500.0,0.00019178,2]
[330554949,1719565834521,-500.0,0.00019178,2]
[330554950,1719565834531,-500.0,0.00019178,2]
[330554951,1719565834543,-500.0,0.00019178,2]
[330554952,1719565834555,-905.89,0.00019178,2]
[330554953,1719565834564,-500.0,0.00019178,2]
[330554954,1719565834573,-500.0,0.00019178,2]
[330554955,1719565834584,-500.0,0.00019178,2]
[330554956,1719565834593,-5189.97,0.00019178,2]
[330554957,1719565834602,-582.59,0.00019178,2]
[330554958,1719565834611,-675.72,0.00019178,2]
[330554959,1719565834624,-500.0,0.00019178,2]
[330554960,1719565834642,-500.0,0.00019178,2]
[330554961,1719565834661,-1207.34,0.00019178,2]
[330554962,1719565834676,-1661.28838434,0.00019178,2]
[330554963,1719565834695,-585.88473432,0.00019178,2]
[330554964,1719565834735,-774.18688134,0.00019178,2]
[330554965,1719565834744,-124.34340321,0.00019178,2]
[330554966,1719565834757,-375.65659679,0.00019178,2]
[330554967,1719565834767,-744.38,0.00019178,2]
[330554968,1719565834776,-231.88130797,0.00019178,2]
[330554969,1719565834786,-500.0,0.00019178,2]
[330554970,1719565834796,-500.0,0.00019178,2]
[330554971,1719565834805,-500.0,0.00019178,2]
[330554972,1719565834814,-2042.81,0.00019178,2]
[330554973,1719565834823,-500.0,0.00019178,2]
[330554974,1719565834834,-500.0,0.00019178,2]
[330554975,1719565834843,-1326.48,0.00019178,2]
[330554976,1719565834853,-500.0,0.00019178,2]
[330554977,1719565834862,-1218.22,0.00019178,2]
[330554978,1719565834871,-500.0,0.00019178,2]
[330554979,1719565834880,-500.0,0.00019178,2]
[330554980,1719565834889,-1425.7,0.00019178,2]
[330554981,1719565834898,-500.0,0.00019178,2]
[330554982,1719565834908,-500.0,0.00019178,2]
[330554983,1719565834920,-500.0,0.00019178,2]
[330554984,1719565834929,-500.0,0.00019178,2]
[330554985,1719565834938,-500.0,0.00019178,2]
[330554986,1719565834947,-500.0,0.00019178,2]
[330554987,1719565834957,-500.0,0.00019178,2]
[330554988,1719565834966,-500.0,0.00019178,2]
[330554989,1719565834976,-1166.36,0.00019178,2]
[330554990,1719565834987,-500.0,0.00019178,2]
[330554991,1719565834996,-500.0,0.00019178,2]
[330554992,1719565835006,-200.0,0.00019178,2]
[330554993,1719565835015,-500.0,0.00019178,2]
[330554994,1719565835024,-500.0,0.00019178,2]
[330554995,1719565835033,-1045.0,0.00019178,2]
[330554996,1719565835044,-500.0,0.00019178,2]
[330554997,1719565835053,-500.0,0.00019178,2]
[330554998,1719565835063,-500.0,0.00019178,2]
[330554999,1719565835072,-500.0,0.00019178,2]
[330555000,1719565835083,-1316.46,0.00019178,2]
[330555001,1719565835093,-723.11,0.00019178,2]
[330555002,1719565835103,-604.13,0.00019178,2]
[330555003,1719565835113,-500.0,0.00019178,2]
[330555004,1719565835124,-500.0,0.00019178,2]
[330555005,1719565835134,-500.0,0.00019178,2]
[330555006,1719565835145,-1729.05,0.00019178,2]
[330555007,1719565835156,-500.0,0.00019178,2]
[330555008,1719565835166,-500.0,0.00019178,2]
[330555009,1719565835175,-500.0,0.00019178,2]
[330555010,1719565835184,-673.27,0.00019178,2]